bitfinex-derivatives/quotes_ETHF0:USTF0_20230702
["timestamp","ask_amount","ask_price","bid_price","bid_amount"]
[1688270087410,4.07544202,1914.4,1914.3,0.87688018]
[1688270087706,4.07544107,1914.4,1914.3,0.87688018]
[1688270088313,3.13802946,1914.4,1914.3,0.87688018]
[1688270092214,3.13802946,1914.4,1914.3,1.47704653]
[1688270092723,3.13802946,1914.4,1914.3,1.19033018]
[1688270093012,3.13802946,1914.4,1914.3,0.87688018]
[1688270094117,3.13802946,1914.4,1914.3,1.47704653]
[1688270094522,3.13802946,1914.4,1914.3,1.19033018]
[1688270098824,3.13802946,1914.4,1914.3,1.47704653]
[1688270099023,3.13802946,1914.4,1914.3,1.19033018]
[1688270099417,3.13802946,1914.4,1914.3,0.87688018]
[1688270099724,3.13802946,1914.4,1914.3,1.19033018]
[1688270101824,3.13802946,1914.4,1914.3,1.47704653]
[1688270102024,3.13802946,1914.4,1914.3,1.19033018]
[1688270103031,3.13802946,1914.4,1914.3,1.47704653]
[1688270105732,0.00458946,1914.4,1914.3,4.78884653]
[1688270105929,0.00458946,1914.4,1914.3,7.60884653]
[1688270106127,0.00458946,1914.4,1914.3,7.37840223]
[1688270112129,0.00458946,1914.4,1914.3,4.55840223]
[1688270114235,0.00458946,1914.4,1914.3,4.45440223]
[1688270126439,0.00458946,1914.4,1914.3,4.16768588]
[1688270126638,0.00458946,1914.4,1914.3,4.45440223]
[1688270133349,0.00458946,1914.4,1914.3,7.36240223]
[1688270133645,2.20770881,1914.9,1914.4,0.56748412]
[1688270133646,2.803,1914.9,1914.4,0.56748412]
[1688270133846,10.1089,1914.9,1914.7,3.13339]
[1688270134145,10.52611076,1914.9,1914.8,3.80788635]
[1688270134358,11.46447541,1914.9,1914.8,3.80788635]
[1688270134542,11.46951481,1914.9,1914.8,3.80788635]
[1688270134943,11.46951481,1914.9,1914.8,3.52117]
[1688270135147,11.46951481,1914.9,1914.8,3.80788635]
[1688270135438,11.05230405,1914.9,1914.8,3.52117]
[1688270135641,11.05230405,1914.9,1914.8,3.80788635]
[1688270136953,0.94340405,1914.9,1914.8,3.80788635]
[1688270137149,0.0050394,1914.9,1914.8,3.80788635]
[1688270137546,0.93836465,1915.0,1914.8,3.80788635]
[1688270138554,0.93836465,1915.0,1914.9,0.53719016]
[1688270138854,0.93836465,1915.0,1914.9,0.46948613]
[1688270139548,0.93836465,1915.0,1914.9,1.03697025]
[1688270140862,0.93836465,1915.0,1914.9,3.83397025]
[1688270141052,6.55249643,1915.1,1914.9,3.83397025]
[1688270141356,6.55249643,1915.1,1915.0,3.80785635]
[1688270141552,6.55249643,1915.1,1915.0,0.75626139]
[1688270141755,6.55249643,1915.1,1915.0,0.46954504]
[1688270142152,9.37249643,1915.1,1915.0,0.75626139]
[1688270148367,9.37249643,1915.1,1915.0,0.46954504]
[1688270148562,9.37734167,1915.1,1915.0,0.46954504]
[1688270150371,9.37734167,1915.1,1915.0,0.75626139]
[1688270151379,9.37734167,1915.1,1915.0,0.46954504]
[1688270153268,9.37734167,1915.1,1915.0,0.89628319]
[1688270154785,9.69066167,1915.1,1915.0,0.89628319]
[1688270154974,12.89846167,1915.1,1915.0,0.89628319]
[1688270158683,12.89846167,1915.1,1915.0,0.46954504]
[1688270159274,12.89846167,1915.1,1914.8,0.94003]
[1688270159583,6.34116,1914.9,1914.8,0.94003]
[1688270159774,7.27952465,1914.9,1914.8,0.94003]
[1688270160681,7.28436351,1914.9,1914.8,0.94003]
[1688270160895,7.28436351,1914.9,1914.8,1.05743994]
[1688270161076,4.07656351,1914.9,1914.8,1.05743994]
[1688270161287,2.82483886,1914.9,1914.8,1.05743994]
[1688270162384,3.13819886,1914.9,1914.8,1.05743994]
[1688270163675,2.82483886,1914.9,1914.8,1.34415629]
[1688270165885,3.13819886,1914.9,1914.8,1.34415629]
[1688270166075,3.13819886,1914.9,1914.8,1.05743994]
[1688270166286,3.13819886,1914.9,1914.8,0.11282048]
[1688270166287,6.34599886,1914.9,1914.8,0.11282048]
[1688270166480,7.28436351,1914.9,1914.8,0.31337]
[1688270168488,7.28436351,1914.9,1914.8,0.83563637]
[1688270168789,7.7093353,1914.9,1914.8,0.52226637]
[1688270171293,7.7093353,1914.9,1914.6,0.94016]
[1688270171594,9.13619,1914.7,1914.6,0.94016]
[1688270171789,10.07455465,1914.7,1914.6,0.94016]
[1688270172190,7.27955465,1914.7,1914.6,0.94016]
[1688270172591,7.28438176,1914.7,1914.6,0.94016]
[1688270173402,7.28438176,1914.7,1914.5,0.31339]
[1688270173587,3.29056444,1914.6,1914.3,0.00783515]
[1688270173893,2.82,1914.4,1914.3,0.32128515]
[1688270174102,3.62100444,1914.4,1914.3,0.00783515]
[1688270174300,4.55936909,1914.4,1914.3,0.00783515]
[1688270174593,4.5642081,1914.4,1914.3,0.00783515]
[1688270174986,4.5642081,1914.4,1914.3,0.69898707]
[1688270175187,4.5642081,1914.4,1914.3,0.00783515]
[1688270175388,4.5642081,1914.4,1914.3,0.71271649]
[1688270175586,4.5642081,1914.4,1914.3,0.32129515]
[1688270177694,4.5642081,1914.4,1914.3,0.00783515]
[1688270178796,4.5642081,1914.4,1914.3,0.71208331]
[1688270178992,18.2212081,1914.4,1913.9,0.31351]
[1688270179290,18.2212081,1914.4,1914.0,0.31351]
[1688270179291,9.5948343,1914.3,1914.0,0.31351]
[1688270179490,6.34129,1914.1,1914.0,0.31351]
[1688270179695,6.82885444,1914.1,1914.0,0.31351]
[1688270179896,7.76667052,1914.1,1914.0,0.31351]
[1688270180597,6.83365685,1914.1,1914.0,0.31351]
[1688270182197,9.65365685,1914.1,1914.0,0.31351]
[1688270182602,14.82845685,1914.1,1914.0,0.31351]
[1688270185797,14.82845685,1914.1,1913.9,0.00783679]
[1688270186000,14.82845685,1914.1,1913.9,0.32135679]
[1688270186001,2.82,1914.0,1913.9,0.32135679]
[1688270186196,3.13351,1914.0,1913.9,0.00783679]
[1688270186514,3.13351,1914.0,1913.9,0.36521279]
[1688270186701,3.13351,1914.0,1913.9,0.00783679]
[1688270187017,3.13351,1914.0,1913.9,0.36521279]
[1688270187306,3.13351,1914.0,1913.9,0.00783679]
[1688270187803,3.13351,1914.0,1913.9,0.36521279]
[1688270190305,3.13351,1914.0,1913.7,0.31353]
[1688270190519,6.0108,1913.8,1913.7,0.31353]
[1688270190711,6.0108,1913.8,1913.0,0.1]
[1688270190712,13.657,1913.5,1913.0,0.1]
[1688270190906,8.8058,1913.1,1912.7,0.78423]
[1688270191208,8.8058,1913.1,1912.1,6.0278]
[1688270191209,0.31372,1912.7,1912.6,0.31374]
[1688270191409,3.30756444,1912.7,1912.6,0.31374]
[1688270191713,3.62128444,1912.7,1912.6,0.31374]
[1688270191898,3.62128444,1912.7,1912.6,0.32615748]
[1688270192104,3.30756444,1912.7,1912.6,0.32615748]
[1688270192305,6.0278,1912.8,1912.6,0.61287383]
[1688270192608,3.13371,1912.8,1912.6,0.32615748]
[1688270193022,6.34151,1912.8,1912.6,0.32615748]
[1688270193509,3.13840403,1912.7,1912.6,0.32615748]
[1688270193903,3.62596847,1912.7,1912.6,0.32615748]
[1688270194516,3.62596847,1912.7,1912.6,0.01241748]
[1688270195804,3.62596847,1912.7,1912.6,0.32615748]
[1688270196214,3.13840403,1912.7,1912.6,0.32615748]
[1688270196708,3.13840403,1912.7,1912.6,0.01241748]
[1688270196910,3.13840403,1912.7,1912.6,0.32614748]
[1688270197310,3.13840403,1912.7,1912.6,0.61286383]
[1688270197505,3.13840403,1912.7,1912.6,0.32614748]
[1688270199109,0.00468403,1912.7,1912.6,0.61286383]
[1688270199418,3.14154149,1913.1,1912.7,0.56748412]
[1688270199717,2.82784149,1913.1,1912.9,3.2078]
[1688270200014,3.14150149,1913.1,1913.0,0.70438635]
[1688270200207,3.14150149,1913.1,1912.9,1.35166412]
[1688270200413,3.14150149,1913.1,1913.0,0.32226492]
[1688270201007,3.12450149,1913.1,1913.0,0.32226492]
[1688270202520,2.81084149,1913.1,1913.0,0.71298127]
[1688270202716,0.00784149,1913.1,1913.0,3.92078127]
[1688270203215,0.00784149,1913.1,1913.0,6.74078127]
[1688270203717,3.74379,1913.6,1913.0,6.74078127]
[1688270203906,0.31359,1913.5,1913.4,3.52139]
[1688270204106,0.31359,1913.5,1913.4,4.37559047]
[1688270204716,0.31359,1913.5,1913.4,4.38036442]
[1688270204917,3.13359,1913.5,1913.4,4.09364807]
[1688270205122,3.13359,1913.5,1913.4,1.17256442]
[1688270205321,3.13359,1913.5,1913.4,0.31836395]
[1688270205717,3.13359,1913.5,1913.4,0.6050803]
[1688270205917,0.00783924,1913.6,1913.4,6.6168803]
[1688270206113,0.31357,1913.9,1913.5,2.797]
[1688270206114,2.82,1913.9,1913.5,2.797]
[1688270206313,3.76059,1914.0,1913.8,3.2078]
[1688270206515,3.76059,1914.0,1913.9,0.31352]
[1688270206919,3.74359,1914.0,1913.9,0.31352]
[1688270207623,3.74793325,1914.0,1913.9,0.31352]
[1688270209120,6.95573325,1914.0,1913.8,0.0078372]
[1688270209310,3.62108444,1913.9,1913.8,0.0078372]
[1688270210413,6.44108444,1913.9,1913.1,6.01917]
[1688270210616,6.44108444,1913.9,1913.2,0.3136]
[1688270210617,2.803,1913.3,1913.2,0.3136]
[1688270210817,5.18218444,1913.3,1913.2,0.3136]
[1688270211719,5.18651557,1913.3,1913.2,0.3136]
[1688270212021,5.18651557,1913.3,1913.2,0.31364]
[1688270213431,5.18651557,1913.3,1913.2,0.32032423]
[1688270214028,5.18651557,1913.3,1913.2,0.60704058]
[1688270214221,4.38533113,1913.3,1913.2,0.60704058]
[1688270214524,0.00433113,1913.3,1913.2,3.81484058]
[1688270214828,0.00433113,1913.3,1913.2,8.20784058]
[1688270215618,5.32274,1913.8,1913.2,8.20784058]
[1688270215821,5.1769,1914.0,1913.7,3.2078]
[1688270216025,0.0078372,1914.1,1913.9,3.2078]
[1688270216221,0.0078372,1914.1,1914.0,0.3135]
[1688270216422,0.3213272,1914.1,1914.0,0.3135]
[1688270216725,0.3213272,1914.1,1914.0,0.60021635]
[1688270216914,0.0078372,1914.1,1914.0,4.99321635]
[1688270217115,0.0078372,1914.1,1914.0,4.95021635]
[1688270219429,0.0078372,1914.1,1914.0,4.95521635]
[1688270220526,0.0078372,1914.1,1914.0,4.99321635]
[1688270222331,0.0078372,1914.1,1914.0,0.60021635]
[1688270222535,0.3213272,1914.1,1914.0,0.3135]
[1688270223633,0.32566241,1914.1,1914.0,0.3135]
[1688270224331,7.89346241,1914.1,1914.0,0.3135]
[1688270224734,7.89346241,1914.1,1913.8,0.94052]
[1688270224934,7.91032,1913.9,1913.8,0.94052]
[1688270225439,4.389,1913.9,1913.8,0.94052]
[1688270225628,7.91464882,1913.9,1913.8,0.94052]
[1688270225836,7.91464882,1913.9,1913.8,0.31354]
[1688270226736,7.91464882,1913.9,1913.5,0.78391]
[1688270226938,3.2078,1913.6,1913.5,0.78391]
[1688270227132,7.91437,1913.6,1913.5,0.78391]
[1688270227440,8.40193444,1913.6,1913.5,0.78391]
[1688270227627,8.40193444,1913.6,1913.5,0.00381896]
[1688270227826,8.40193444,1913.6,1913.5,0.31740896]
[1688270228034,8.40193444,1913.6,1913.5,0.31359]
[1688270228639,8.40193444,1913.6,1913.5,0.31740896]
[1688270229035,5.19413444,1913.6,1913.5,0.31740896]
[1688270229234,8.40193444,1913.6,1913.5,0.31740896]
[1688270230344,5.19413444,1913.6,1913.5,0.60030635]
[1688270230837,5.19413444,1913.6,1913.5,0.31359]
[1688270231039,5.19413444,1913.6,1913.5,0.60030635]
[1688270231435,0.80113444,1913.6,1913.5,0.60030635]
[1688270232036,0.80113444,1913.6,1913.5,0.31359]
[1688270232646,0.31357,1913.6,1913.5,0.60030635]
[1688270232941,5.14393,1913.7,1913.5,0.60030635]
[1688270232942,0.78393,1913.7,1913.5,0.60030635]
[1688270233143,4.70657,1913.8,1913.6,3.2078]
[1688270233144,4.393,1913.8,1913.6,3.2078]
[1688270233345,0.00432882,1913.9,1913.7,0.31356]
[1688270233543,0.31785882,1913.9,1913.8,0.28671635]
[1688270233738,0.31785882,1913.9,1913.8,0.60025635]
[1688270234040,0.00432882,1913.9,1913.8,0.60025635]
[1688270234240,0.00432882,1913.9,1913.8,4.37554047]
[1688270234745,4.39732882,1913.9,1913.8,0.60025635]
[1688270234944,4.71084882,1913.9,1913.8,0.31354]
[1688270235141,4.71084882,1913.9,1913.8,3.80805635]
[1688270235442,0.00432882,1913.9,1913.8,8.20105635]
[1688270236648,0.3213272,1914.1,1913.8,8.30505635]
[1688270236846,0.3213272,1914.1,1914.0,3.2078]
[1688270237046,0.3213272,1914.1,1914.0,3.80802635]
[1688270237543,0.3213272,1914.1,1914.0,3.52131]
[1688270237950,0.3213272,1914.1,1914.0,3.80802635]
[1688270238141,0.3213272,1914.1,1914.0,8.20102635]
[1688270238142,0.0078372,1914.1,1914.0,8.20102635]
[1688270238543,0.01217778,1914.1,1914.0,8.20102635]
[1688270253656,0.01217778,1914.1,1914.0,7.91431]
[1688270254151,0.01217778,1914.1,1914.0,0.31351]
[1688270254345,4.68666778,1914.1,1914.0,0.31351]
[1688270255451,4.79066778,1914.1,1914.0,0.31351]
[1688270259159,5.31093621,1914.1,1914.0,0.60022635]
[1688270259453,0.01217778,1914.1,1914.0,0.60022635]
[1688270260851,0.01217778,1914.1,1914.0,3.80802635]
[1688270261453,0.01217778,1914.1,1914.0,0.60022635]
[1688270261764,0.01217778,1914.1,1914.0,0.31351]
[1688270262260,4.40117778,1914.1,1914.0,0.31351]
[1688270262561,4.40117778,1914.1,1914.0,0.60022635]
[1688270263360,4.40117778,1914.1,1914.0,0.31351]
[1688270263361,4.71466778,1914.1,1914.0,0.31351]
[1688270264162,4.40117778,1914.1,1914.0,0.60022635]
[1688270266364,4.71466778,1914.1,1914.0,0.31351]
[1688270266761,4.71466778,1914.1,1914.0,0.60022635]
[1688270268263,0.01217778,1914.1,1914.0,3.80802635]
[1688270268464,0.01217778,1914.1,1914.0,0.60022635]
[1688270271468,0.01217778,1914.1,1914.0,3.80802635]
[1688270272468,0.01217778,1914.1,1914.0,0.60022635]
[1688270273060,0.01217778,1914.1,1914.0,3.80802635]
[1688270274161,0.32566778,1914.1,1914.0,3.52131]
[1688270274563,0.32566778,1914.1,1914.0,3.80802635]
[1688270275070,0.01217778,1914.1,1914.0,3.80802635]
[1688270279171,0.01217778,1914.1,1914.0,0.60022635]
[1688270280072,0.01217778,1914.1,1914.0,3.80802635]
[1688270280873,0.01217778,1914.1,1914.0,6.63102635]
[1688270281475,0.01217778,1914.1,1914.0,3.42322635]
[1688270281978,0.01217778,1914.1,1914.0,6.63102635]
[1688270287462,0.93777489,1914.4,1914.0,6.63102635]
[1688270287664,0.93777489,1914.6,1914.4,0.31344]
[1688270287876,4.22833933,1914.7,1914.4,3.42315635]
[1688270288080,4.95896734,1914.7,1914.4,3.13644]
[1688270288270,4.95896734,1914.7,1914.4,0.31344]
[1688270288271,2.803,1914.6,1914.4,0.31344]
[1688270288471,0.80098444,1914.5,1914.4,0.31344]
[1688270289973,0.48756444,1914.5,1914.4,0.60015635]
[1688270290376,0.80098444,1914.5,1914.4,0.60015635]
[1688270290574,0.80098444,1914.5,1914.4,0.31344]
[1688270292083,3.60398444,1914.5,1914.4,0.31344]
[1688270295576,3.60827037,1914.5,1914.4,0.31344]
[1688270295777,3.60827037,1914.5,1914.4,0.60015635]
[1688270295977,3.29485037,1914.5,1914.4,0.60015635]
[1688270296188,2.80728593,1914.5,1914.4,0.60015635]
[1688270297971,2.80728593,1914.5,1914.4,0.31344]
[1688270298177,2.80728593,1914.5,1914.4,0.60015635]
[1688270300278,3.12070593,1914.5,1914.4,0.60015635]
[1688270301884,3.12070593,1914.5,1914.4,0.31344]
[1688270303092,2.80728593,1914.5,1914.4,0.60015635]
[1688270305087,0.00428593,1914.5,1914.4,3.40615635]
[1688270310192,0.31770593,1914.5,1914.4,3.40615635]
[1688270310591,0.31770593,1914.5,1914.4,3.11944]
[1688270311590,0.31770593,1914.5,1914.4,3.40615635]
[1688270311591,0.00428593,1914.5,1914.4,3.40615635]
[1688270318498,0.00428593,1914.5,1914.4,3.81411668]
[1688270330097,0.00428593,1914.5,1914.4,3.82011668]
[1688270337701,0.11130106,1914.5,1914.4,3.82011668]
[1688270340312,0.08004929,1914.5,1914.4,3.82011668]
[1688270343912,0.08004929,1914.5,1914.4,3.53340033]
[1688270344112,3.19646929,1914.5,1914.4,0.72140033]
[1688270344509,4.13424418,1914.5,1914.4,0.72140033]
[1688270344713,4.05848082,1914.5,1914.4,0.72140033]
[1688270347815,4.05448082,1914.5,1914.3,0.00783494]
[1688270348015,6.62236444,1914.4,1914.3,0.00783494]
[1688270348212,7.87357933,1914.4,1914.3,0.00783494]
[1688270348414,10.69057933,1914.4,1914.1,1.04481]
[1688270348623,6.0068,1914.2,1914.1,1.04481]
[1688270348816,6.80783444,1914.2,1914.1,1.04481]
[1688270349014,7.74560933,1914.2,1914.1,1.04481]
[1688270349617,7.74986488,1914.2,1914.1,1.04481]
[1688270350013,4.54206488,1914.2,1914.1,1.04481]
[1688270350226,3.60428999,1914.2,1914.1,1.04481]
[1688270351630,2.80325555,1914.2,1914.1,1.33152635]
[1688270351822,0.00425555,1914.2,1914.1,1.33152635]
[1688270352321,0.31773555,1914.2,1914.1,1.33152635]
[1688270352519,0.31773555,1914.2,1914.1,1.04481]
[1688270353823,0.31773555,1914.2,1914.1,1.33152635]
[1688270355528,0.31773555,1914.2,1914.1,1.04481]
[1688270356134,0.7346511,1914.2,1914.1,1.04481]
[1688270356335,0.31773555,1914.2,1914.1,1.04481]
[1688270362128,3.11673555,1914.2,1914.1,1.04481]
[1688270364932,3.11673555,1914.2,1914.1,1.33152635]
[1688270366236,0.00425555,1914.2,1914.1,4.53932635]
[1688270367142,0.00425555,1914.2,1914.1,7.35132635]
[1688270368633,1.72141489,1914.4,1914.1,7.35132635]
[1688270368941,1.72141489,1914.4,1914.3,0.31346]
[1688270369233,2.14003159,1914.4,1914.3,0.31346]
[1688270369631,1.36067549,1914.4,1914.3,3.80797635]
[1688270371336,0.4229006,1914.4,1914.3,3.80797635]
[1688270371541,0.0042839,1914.4,1914.3,3.80797635]
[1688270373237,0.0042839,1914.4,1914.3,6.71797635]
[1688270373941,0.09907068,1914.4,1914.3,6.71797635]
[1688270380349,0.09907068,1914.4,1914.3,7.13683122]
[1688270382152,0.09907068,1914.4,1914.3,9.95983122]
[1688270384652,0.00783494,1914.7,1914.3,9.95983122]
[1688270384954,0.00783494,1914.7,1914.6,6.0138]
[1688270385150,0.00783494,1914.7,1914.6,6.61392635]
[1688270385151,0.16268822,1914.7,1914.6,6.61392635]
[1688270385550,0.16268822,1914.7,1914.6,7.18141047]
[1688270385751,0.16664552,1914.7,1914.6,7.18141047]
[1688270396953,0.16664552,1914.7,1914.6,7.60981224]
[1688270397654,0.23396529,1914.7,1914.6,7.60981224]
[1688270397856,0.01179224,1914.7,1914.6,7.60981224]
[1688270398061,0.23395037,1914.7,1914.6,7.60981224]
[1688270400962,0.54734037,1914.7,1914.5,3.59553]
[1688270401165,0.54734037,1914.7,1914.5,0.78353]
[1688270401166,2.823,1914.6,1914.5,0.78353]
[1688270401365,2.823,1914.6,1914.4,6.0198]
[1688270401366,3.62397444,1914.6,1914.4,6.33322]
[1688270401668,0.80097444,1914.6,1914.5,0.78353]
[1688270401859,3.59997444,1914.6,1914.5,0.78353]
[1688270402064,3.59997444,1914.6,1914.5,0.78356]
[1688270406064,3.59997444,1914.6,1914.5,0.87262132]
[1688270406469,3.59997444,1914.6,1914.5,1.15933767]
[1688270406666,0.48756444,1914.6,1914.5,1.15933767]
[1688270406868,5.10849224,1914.7,1914.5,3.96533767]
[1688270407166,5.10849224,1914.7,1914.6,0.08810742]
[1688270407470,5.10849224,1914.7,1914.6,6.98880154]
[1688270407471,0.01179224,1914.7,1914.6,6.98880154]
[1688270408363,0.01179224,1914.7,1914.6,12.16580154]
[1688270409073,0.01179224,1914.7,1914.6,6.98880154]
[1688270409374,0.32518224,1914.7,1914.6,4.17680154]
[1688270410065,0.32518224,1914.7,1914.6,0.40151742]
[1688270410264,3.12818224,1914.7,1914.6,0.40151742]
[1688270411066,0.01179224,1914.7,1914.6,0.40151742]
[1688270411370,0.01179224,1914.7,1914.6,3.89603377]
[1688270411573,0.01179224,1914.7,1914.6,0.68823377]
[1688270411770,0.01179224,1914.7,1914.6,3.89603377]
[1688270412178,0.01179224,1914.7,1914.6,6.71903377]
[1688270419075,0.01179224,1914.7,1914.6,3.64630938]
[1688270419267,3.12818224,1914.7,1914.6,0.40151742]
[1688270421475,3.12818224,1914.7,1914.6,0.08810742]
[1688270421476,3.14018224,1914.7,1914.6,0.08810742]
[1688270422370,3.14018224,1914.7,1914.6,0.40151742]
[1688270422569,4.07868354,1914.7,1914.6,0.40151742]
[1688270424483,4.07868354,1914.7,1914.6,0.68823377]
[1688270424484,2.82679224,1914.7,1914.6,0.68823377]
[1688270424682,0.01179224,1914.7,1914.6,3.89603377]
[1688270426579,0.01179224,1914.7,1914.6,6.82303377]
[1688270433489,0.01179224,1914.7,1914.6,6.71903377]
[1688270434085,0.01179224,1914.7,1914.6,7.14060241]
[1688270438993,3.12418224,1914.7,1914.6,3.60931742]
[1688270440196,4.06268354,1914.7,1914.6,3.60931742]
[1688270440593,4.06268354,1914.7,1914.6,0.40151742]
[1688270441293,4.06268354,1914.7,1914.6,0.31341]
[1688270441791,4.14226949,1914.7,1914.6,0.31341]
[1688270444388,4.14226949,1914.7,1914.6,0.60012635]
[1688270444389,3.82887949,1914.7,1914.6,0.60012635]
[1688270444987,3.82887949,1914.7,1914.6,3.80792635]
[1688270452093,0.09137819,1914.7,1914.6,6.63092635]
[1688270453602,2.90637819,1914.7,1914.6,3.52121]
[1688270453898,3.21976819,1914.7,1914.6,3.52121]
[1688270457498,3.21976819,1914.7,1914.6,3.80792635]
[1688270458190,3.21976819,1914.7,1914.6,3.52121]
[1688270464406,3.21976819,1914.7,1914.6,3.80792635]
[1688270468018,3.21976819,1914.7,1914.6,3.52121]
[1688270470319,3.64344578,1914.7,1914.6,3.52121]
[1688270474425,3.64344578,1914.7,1914.5,3e-05]
[1688270474622,3.59997444,1914.6,1914.5,0.31344]
[1688270475329,3.60364343,1914.6,1914.5,0.31344]
[1688270477727,3.11607899,1914.6,1914.5,0.60015635]
[1688270478719,3.11607899,1914.6,1914.5,0.31344]
[1688270479423,3.11607899,1914.6,1914.5,0.60015635]
[1688270482530,3.11607899,1914.6,1914.5,0.31344]
[1688270484032,3.11607899,1914.6,1914.5,0.60015635]
[1688270487236,3.11607899,1914.6,1914.5,0.31344]
[1688270490241,3.11607899,1914.6,1914.5,0.60015635]
[1688270493949,3.11607899,1914.6,1914.5,0.31344]
[1688270501541,3.11607899,1914.6,1914.5,3e-05]
[1688270502449,3.11607899,1914.6,1914.5,0.31345]
[1688270503246,6.32387899,1914.6,1914.5,0.31345]
[1688270503450,7.26238029,1914.6,1914.5,0.31345]
[1688270505651,4.05458029,1914.6,1914.5,0.31345]
[1688270505848,3.11607899,1914.6,1914.5,0.31345]
[1688270509048,3.11607899,1914.6,1914.5,0.60016635]
[1688270509453,3.11607899,1914.6,1914.5,0.31345]
[1688270519954,6.32387899,1914.6,1914.5,3e-05]
[1688270520156,7.74994473,1914.6,1914.1,6.01631]
[1688270520361,2.823,1914.2,1914.1,6.01631]
[1688270520659,3.62403444,1914.2,1914.1,6.01631]
[1688270521066,3.62403444,1914.2,1914.0,5.24583638]
[1688270521359,0.31351,1914.0,1913.8,3.99162]
[1688270521554,3.61608444,1913.9,1913.8,8.89882]
[1688270522455,3.61971857,1913.9,1913.8,8.115]
[1688270522659,3.61971857,1913.9,1913.8,3.2078]
[1688270522960,3.61971857,1913.9,1913.7,0.3213876]
[1688270523160,2.815,1913.8,1913.7,0.3213876]
[1688270523356,4.0670413,1913.8,1913.7,0.0078376]
[1688270523859,4.0670413,1913.8,1913.7,0.3213876]
[1688270524258,4.07065238,1913.8,1913.7,0.0078376]
[1688270526264,4.07065238,1913.8,1913.7,0.3213876]
[1688270526464,3.13215108,1913.8,1913.7,0.3213876]
[1688270526654,3.13215108,1913.8,1913.7,0.60810395]
[1688270527864,3.13215108,1913.8,1913.7,0.61573869]
[1688270528062,3.13215108,1913.8,1913.7,0.32902234]
[1688270530868,3.13215108,1913.8,1913.7,0.61573869]
[1688270532863,3.13215108,1913.8,1913.7,0.32902234]
[1688270533563,3.13215108,1913.8,1913.7,0.01547234]
[1688270533564,6.36918698,1913.8,1913.7,0.01547234]
[1688270536267,9.57698698,1913.8,1913.7,0.01547234]
[1688270538061,9.57698698,1913.8,1913.7,0.0078376]
[1688270538772,6.36918698,1913.8,1913.7,0.01547234]
[1688270540468,9.57698698,1913.8,1913.7,0.01547234]
[1688270542871,6.36918698,1913.8,1913.7,0.30218869]
[1688270543076,3.14015108,1913.8,1913.7,0.61574869]
[1688270544465,3.14015108,1913.8,1913.7,0.32903234]
[1688270545278,3.14015108,1913.8,1913.7,0.01547234]
[1688270545663,3.14015108,1913.8,1913.7,0.32903234]
[1688270545867,3.14015108,1913.8,1913.7,0.01547234]
[1688270548275,6.34795108,1913.8,1913.7,0.00906742]
[1688270549369,6.34795108,1913.8,1913.7,0.00143268]
[1688270550166,6.34795108,1913.8,1913.7,0.00906742]
[1688270553477,15.00495108,1913.8,1913.7,0.00906742]
[1688270553776,15.00495108,1913.8,1913.7,0.00143268]
[1688270553980,15.94274243,1913.8,1913.7,0.00143268]
[1688270554181,15.94273594,1913.8,1913.7,0.00143268]
[1688270554778,15.94273594,1913.8,1913.7,0.00906742]
[1688270554980,16.36427565,1913.8,1913.7,0.00906742]
[1688270555770,16.36427565,1913.8,1913.7,0.00143268]
[1688270557982,16.36427565,1913.8,1913.2,5.79106]
[1688270557983,0.31359,1913.5,1913.0,3.2078]
[1688270558174,3.12866,1913.1,1913.0,3.52147]
[1688270558376,3.12866,1913.1,1913.0,3.80818635]
[1688270558882,3.12866,1913.1,1913.0,3.91218635]
[1688270559083,0.31366,1913.1,1913.0,3.91218635]
[1688270559277,0.31722467,1913.1,1913.0,3.91218635]
[1688270559576,0.00356467,1913.1,1913.0,3.91218635]
[1688270560076,0.00356467,1913.1,1913.0,9.16828635]
[1688270560280,3.60699088,1913.2,1913.0,9.16828635]
[1688270561285,0.00355392,1913.1,1913.0,9.73577047]
[1688270561476,0.31721392,1913.1,1913.0,9.73577047]
[1688270561674,0.00355392,1913.1,1913.0,9.73577047]
[1688270562083,0.00355392,1913.1,1913.0,12.54177047]
[1688270562381,0.00784088,1913.2,1913.0,12.54177047]
[1688270563176,0.00784088,1913.2,1913.0,17.74427047]
[1688270563375,0.00355228,1913.1,1913.0,17.74427047]
[1688270564478,0.00784088,1913.2,1913.0,17.74427047]
[1688270564779,0.32148088,1913.2,1913.1,0.01336498]
[1688270564970,0.32148088,1913.2,1913.1,0.32702498]
[1688270565170,0.32148088,1913.2,1913.1,0.31366]
[1688270565378,0.32503166,1913.2,1913.1,0.32702498]
[1688270565577,0.01139166,1913.2,1913.1,0.32702498]
[1688270566579,0.01139166,1913.2,1913.1,12.87433828]
[1688270572186,0.01139166,1913.2,1913.1,15.69733828]
[1688270579387,0.32503166,1913.2,1913.1,15.69733828]
[1688270579584,0.32503166,1913.2,1913.1,12.87433828]
[1688270579990,3.12403166,1913.2,1913.1,12.87433828]
[1688270580994,3.12403166,1913.2,1913.1,0.32702498]
[1688270581486,3.12403166,1913.2,1913.1,0.01336498]
[1688270581896,3.12403166,1913.2,1913.0,3.2078]
[1688270582193,3.29056444,1913.1,1913.0,3.2078]
[1688270582488,3.60422444,1913.1,1913.0,3.52147]
[1688270582683,3.60422444,1913.1,1913.0,3.2078]
[1688270582886,6.81202444,1913.1,1912.9,0.00784088]
[1688270583094,8.65482953,1913.0,1912.9,0.00784088]
[1688270583296,8.97200925,1913.0,1912.9,0.02311675]
[1688270583794,8.97200925,1913.0,1912.7,0.31372]
[1688270583997,3.1167,1912.8,1912.7,0.31372]
[1688270584192,3.24172,1912.7,1912.4,0.94121]
[1688270584387,0.48756444,1912.6,1912.5,0.31375]
[1688270584694,3.60030444,1912.6,1912.5,0.31758971]
[1688270586507,0.105,1912.5,1912.2,0.31379]
[1688270586693,2.908,1912.3,1912.1,0.94133]
[1688270586894,5.646,1912.1,1912.0,0.93445]
[1688270587098,6.55237444,1912.1,1912.0,0.46382]
[1688270587295,6.44737444,1912.1,1912.0,0.46382]
[1688270587592,3.72937444,1912.1,1912.0,0.46382]
[1688270587896,3.72937444,1912.1,1912.0,0.15]
[1688270588093,3.72937444,1912.1,1912.0,0.46383]
[1688270588295,0.105,1911.8,1911.7,3.62584084]
[1688270588502,3.72942444,1911.8,1911.7,3.52932072]
[1688270589298,3.72942444,1911.8,1911.7,0.00765072]
[1688270589502,0.105,1911.4,1911.1,0.78488]
[1688270589701,6.42576,1911.2,1911.0,0.41397]
[1688270589903,2.815,1911.1,1911.0,0.88496]
[1688270590205,2.815,1911.1,1911.0,4.37947635]
[1688270590406,2.815,1911.1,1911.0,4.09276]
[1688270590898,2.815,1911.1,1911.0,4.37947635]
[1688270591208,2.823,1911.7,1911.2,1.09893394]